fUSD/lending_fUSD_20250629
["ID","MTS","AMOUNT","RATE_DAILY","PERIOD"]
[368477861,1751189484824,-490.0,0.00028218,3]
[368477862,1751189484833,-490.0,0.00028218,3]
[368477863,1751189484843,-490.0,0.00028218,3]
[368477864,1751189484853,-490.0,0.00028218,3]
[368477865,1751189484863,-490.0,0.00028218,3]
[368477866,1751189484873,-490.0,0.00028218,3]
[368477867,1751189484885,-490.0,0.00028218,3]
[368477868,1751189484894,-490.0,0.00028218,3]
[368477869,1751189484904,-490.0,0.00028218,3]
[368477870,1751189484914,-490.0,0.00028218,3]
[368477871,1751189484923,-490.0,0.00028218,3]
[368477872,1751189484932,-490.0,0.00028218,3]
[368477873,1751189484942,-490.0,0.00028218,3]
[368477874,1751189484953,-490.0,0.00028218,3]
[368477875,1751189484962,-356.95963181,0.00028218,3]
[368477876,1751189484972,-615.13037362,0.00028218,3]
[368477877,1751189484982,-559.52,0.00028218,3]
[368477878,1751189484992,-490.0,0.00028218,3]
[368477879,1751189485001,-490.0,0.00028218,3]
[368477880,1751189485011,-490.0,0.00028218,3]
[368477881,1751189485020,-1075.96,0.00028218,3]
[368477882,1751189485029,-671.22,0.00028218,3]
[368477883,1751189485039,-490.0,0.00028218,3]
[368477884,1751189485048,-925.57,0.00028218,3]
[368477885,1751189485057,-490.0,0.00028218,3]
[368477886,1751189485066,-490.0,0.00028218,3]
[368477887,1751189485077,-490.0,0.00028218,3]
[368477888,1751189485086,-548.26,0.00028218,3]
[368477889,1751189485095,-490.0,0.00028218,3]
[368477890,1751189485105,-490.0,0.00028218,3]
[368477891,1751189485115,-490.0,0.00028218,3]
[368477892,1751189485124,-490.0,0.00028218,3]
[368477893,1751189485134,-542.35024887,0.00028218,3]
[368477894,1751189485143,-634.69,0.00028218,3]
[368477895,1751189485152,-1012.64,0.00028218,3]
[368477896,1751189485162,-971.86,0.00028218,3]
[368477897,1751189485172,-490.0,0.00028218,3]
[368477898,1751189485183,-555.65,0.00028218,3]
[368477899,1751189485192,-585.39453737,0.00028218,3]
[368477900,1751189485202,-416.88816425,0.00028218,3]
[368477901,1751189485212,-490.0,0.00028218,3]
[368477902,1751189485221,-1621.92,0.00028218,3]
[368477903,1751189485230,-490.0,0.00028218,3]
[368477904,1751189485240,-1161.41,0.00028218,3]
[368477905,1751189485249,-490.0,0.00028218,3]
[368477906,1751189485258,-490.0,0.00028218,3]
[368477907,1751189485269,-1010.98,0.00028218,3]
[368477908,1751189485279,-490.0,0.00028218,3]
[368477909,1751189485288,-490.0,0.00028218,3]
[368477910,1751189485297,-672.29,0.00028218,3]
[368477911,1751189485307,-554.38,0.00028218,3]
[368477912,1751189485316,-508.03,0.00028218,3]
[368477913,1751189485327,-490.0,0.00028218,3]
[368477914,1751189485337,-506.79,0.00028218,3]
[368477915,1751189485347,-490.0,0.00028218,3]
[368477916,1751189485357,-2397.91,0.00028218,3]
[368477917,1751189485366,-490.0,0.00028218,3]
[368477918,1751189485375,-490.0,0.00028218,3]
[368477919,1751189485385,-490.0,0.00028218,3]
[368477920,1751189485395,-2172.31,0.00028218,3]
[368477921,1751189485404,-811.07,0.00028218,3]
[368477922,1751189485414,-490.0,0.00028218,3]
[368477923,1751189485423,-490.0,0.00028218,3]
[368477924,1751189485432,-490.0,0.00028218,3]
[368477925,1751189485441,-1866.33,0.00028218,3]
[368477926,1751189485451,-933.26,0.00028218,3]
[368477927,1751189485460,-783.43,0.00028218,3]
[368477928,1751189485469,-2828.11,0.00028218,3]
[368477929,1751189485478,-490.0,0.00028218,3]
[368477930,1751189485488,-490.0,0.00028218,3]
[368477931,1751189485498,-1374.78,0.00028218,3]
[368477932,1751189485508,-490.0,0.00028218,3]
[368477933,1751189485517,-1751.17,0.00028218,3]
[368477934,1751189485527,-834.96,0.00028218,3]
[368477935,1751189485536,-490.0,0.00028218,3]
[368477936,1751189485545,-490.0,0.00028218,3]
[368477937,1751189485555,-490.0,0.00028218,3]
[368477938,1751189485564,-1333.76,0.00028218,3]
[368477939,1751189485574,-1784.59,0.00028218,3]
[368477940,1751189485583,-1479.84,0.00028218,3]
[368477941,1751189485593,-490.0,0.00028218,3]
[368477942,1751189485603,-422.57395575,0.00028218,3]
[368477943,1751189485612,-490.0,0.00028218,3]
[368477944,1751189485622,-490.0,0.00028218,3]
[368477945,1751189485632,-1718.67,0.00028218,3]
[368477946,1751189485642,-1810.15,0.00028218,3]
[368477947,1751189485651,-828.68,0.00028218,3]
[368477948,1751189485661,-490.0,0.00028218,3]
[368477949,1751189485670,-490.0,0.00028218,3]
[368477950,1751189485679,-2306.63,0.00028218,3]
[368477951,1751189485688,-490.0,0.00028218,3]
[368477952,1751189485697,-1857.36,0.00028218,3]
[368477953,1751189485707,-915.99,0.00028218,3]
[368477954,1751189485716,-490.0,0.00028218,3]
[368477955,1751189485726,-490.0,0.00028218,3]
[368477956,1751189485736,-490.0,0.00028218,3]
[368477957,1751189485746,-2033.74,0.00028218,3]
[368477958,1751189485756,-632.21,0.00028218,3]
[368477959,1751189485766,-300.0,0.00028218,3]
[368477960,1751189485775,-2892.07,0.00028218,3]
[368477961,1751189485785,-490.0,0.00028218,3]
[368477962,1751189485794,-490.0,0.00028218,3]
[368477963,1751189485803,-490.0,0.00028218,3]
[368477964,1751189485813,-235.790028,0.00028218,7]
[368477965,1751189485822,-1157.08,0.00028218,3]
[368477966,1751189485831,-1747.83,0.00028218,3]
[368477967,1751189485840,-235.790028,0.00028218,7]
[368477968,1751189485850,-490.0,0.00028218,3]
[368477969,1751189485859,-490.0,0.00028218,3]
[368477970,1751189485869,-490.0,0.00028218,3]
[368477971,1751189485880,-490.0,0.00028218,3]
[368477972,1751189485891,-490.0,0.00028218,3]
[368477973,1751189485900,-1123.67,0.00028218,3]
[368477974,1751189485910,-1273.17,0.00028218,3]
[368477975,1751189485999,-1365.15,0.00028218,3]
[368477976,1751189486008,-490.0,0.00028218,3]
[368477977,1751189486018,-2236.23,0.00028218,3]
[368477978,1751189486027,-490.0,0.00028218,3]
[368477979,1751189486037,-490.0,0.00028218,3]
[368477980,1751189486046,-490.0,0.00028218,3]
[368477981,1751189486055,-490.0,0.00028218,3]
[368477982,1751189486064,-2580.28,0.00028218,3]
[368477983,1751189486074,-1099.21,0.00028218,3]
[368477984,1751189486083,-490.0,0.00028218,3]
[368477985,1751189486092,-770.73,0.00028218,3]
[368477986,1751189486101,-587.27109581,0.00028218,3]
[368477987,1751189486112,-490.0,0.00028218,3]
[368477988,1751189486121,-615.64,0.00028218,3]
[368477989,1751189486131,-559.04,0.00028218,3]
[368477990,1751189486140,-490.0,0.00028218,3]
[368477991,1751189486150,-1755.09,0.00028218,3]
[368477992,1751189486160,-2220.75,0.00028218,3]
[368477993,1751189486169,-490.0,0.00028218,3]
[368477994,1751189486179,-800.6,0.00028218,3]
[368477995,1751189486188,-2173.61,0.00028218,3]
[368477996,1751189486197,-490.0,0.00028218,3]
[368477997,1751189486207,-490.0,0.00028218,3]
[368477998,1751189486217,-796.44,0.00028218,3]
[368477999,1751189486228,-490.0,0.00028218,3]
[368478000,1751189486237,-1415.28,0.00028218,3]
[368478001,1751189486247,-1098.61,0.00028218,3]
[368478002,1751189486257,-1467.66,0.00028218,3]
[368478003,1751189486266,-846.19,0.00028218,3]
[368478004,1751189486276,-2437.95,0.00028218,3]
[368478005,1751189486285,-490.0,0.00028218,3]
[368478006,1751189486295,-490.0,0.00028218,3]
[368478007,1751189486304,-490.0,0.00028218,3]
[368478008,1751189486313,-1063.24,0.00028218,3]
[368478009,1751189486323,-1387.23,0.00028218,3]
[368478010,1751189486332,-490.0,0.00028218,3]
[368478011,1751189486341,-590.37,0.00028218,3]
[368478012,1751189486350,-490.0,0.00028218,3]
[368478013,1751189486359,-490.38,0.00028218,3]
[368478014,1751189486369,-590.88783622,0.00028218,3]
[368478015,1751189486378,-835.3,0.00028218,3]
[368478016,1751189486387,-490.0,0.00028218,3]
[368478017,1751189486396,-490.0,0.00028218,3]
[368478018,1751189486406,-490.0,0.00028218,3]
[368478019,1751189486415,-490.0,0.00028218,3]
[368478020,1751189486424,-592.65,0.00028218,3]
[368478021,1751189486433,-592.65,0.00028218,3]
[368478022,1751189486442,-592.65,0.00028218,3]
[368478023,1751189486451,-592.65,0.00028218,3]
[368478024,1751189486462,-592.65,0.00028218,3]
[368478025,1751189486471,-592.65,0.00028218,3]
[368478026,1751189486481,-592.65,0.00028218,3]
[368478027,1751189486490,-592.65,0.00028218,3]
[368478028,1751189486499,-592.65,0.00028218,3]
[368478029,1751189486508,-592.65,0.00028218,3]
[368478030,1751189486518,-592.65,0.00028218,3]
[368478031,1751189486527,-1775.1,0.00028218,3]
[368478032,1751189486536,-849.15,0.00028218,3]
[368478033,1751189486545,-592.78243147,0.00028218,3]
[368478034,1751189486555,-490.0,0.00028218,3]
[368478035,1751189486564,-1422.21,0.00028218,3]
[368478036,1751189486573,-983.22,0.00028218,3]
[368478037,1751189486582,-718.95,0.00028218,3]
[368478038,1751189486592,-490.0,0.00028218,3]
[368478039,1751189486601,-875.61,0.00028218,3]
[368478040,1751189486611,-490.0,0.00028218,3]
[368478041,1751189486620,-490.0,0.00028218,3]
[368478042,1751189486630,-1063.79,0.00028218,3]
[368478043,1751189486640,-1325.28,0.00028218,3]
[368478044,1751189486649,-515.05,0.00028218,3]
[368478045,1751189486660,-682.09,0.00028218,3]
[368478046,1751189486670,-915.0,0.00028218,3]
[368478047,1751189486679,-490.0,0.00028218,3]
[368478048,1751189486689,-490.0,0.00028218,3]
[368478049,1751189486698,-490.0,0.00028218,3]
[368478050,1751189486708,-490.0,0.00028218,3]
[368478051,1751189486718,-490.0,0.00028218,3]
[368478052,1751189486727,-666.85,0.00028218,3]
[368478053,1751189486737,-490.0,0.00028218,3]
[368478054,1751189486746,-490.0,0.00028218,3]
[368478055,1751189486756,-490.0,0.00028218,3]
[368478056,1751189486766,-490.0,0.00028218,3]
[368478057,1751189486775,-1983.07,0.00028218,3]
[368478058,1751189486785,-490.0,0.00028218,3]
[368478059,1751189486795,-535.35,0.00028218,3]
[368478060,1751189486805,-490.0,0.00028218,3]
[368478061,1751189486815,-1138.28,0.00028218,3]
[368478062,1751189486824,-1028.17,0.00028218,3]
[368478063,1751189486834,-490.0,0.00028218,3]
[368478064,1751189486843,-1028.5,0.00028218,3]
[368478065,1751189486853,-2231.94,0.00028218,3]
[368478066,1751189486863,-490.0,0.00028218,3]
[368478067,1751189486877,-1757.38,0.00028218,3]
[368478068,1751189486886,-856.66,0.00028218,3]
[368478069,1751189486895,-490.0,0.00028218,3]
[368478070,1751189486905,-1579.5,0.00028218,3]
[368478071,1751189486915,-490.0,0.00028218,3]
[368478072,1751189486925,-1094.72,0.00028218,3]
[368478073,1751189486935,-490.0,0.00028218,3]
[368478074,1751189486945,-494.21,0.00028218,3]
[368478075,1751189486955,-490.0,0.00028218,3]
[368478076,1751189486966,-2654.18,0.00028218,3]
[368478077,1751189486976,-1070.04,0.00028218,3]
[368478078,1751189486985,-490.0,0.00028218,3]
[368478079,1751189486994,-490.0,0.00028218,3]
[368478080,1751189487004,-490.0,0.00028218,3]
[368478081,1751189487013,-490.0,0.00028218,3]
[368478082,1751189487022,-490.0,0.00028218,3]
[368478083,1751189487031,-519.05,0.00028218,3]
[368478084,1751189487039,-1748.89,0.00028218,3]
[368478085,1751189487047,-490.0,0.00028218,3]
[368478086,1751189487056,-887.78,0.00028218,3]
[368478087,1751189487065,-490.0,0.00028218,3]
[368478088,1751189487074,-490.0,0.00028218,3]
[368478089,1751189487083,-490.0,0.00028218,3]
[368478090,1751189487092,-490.0,0.00028218,3]
[368478091,1751189487101,-1702.68,0.00028218,3]
[368478092,1751189487111,-490.0,0.00028218,3]
[368478093,1751189487121,-1025.11,0.00028218,3]
[368478094,1751189487130,-1366.85,0.00028218,3]
[368478095,1751189487140,-500.0,0.00028218,3]
[368478096,1751189487150,-500.0,0.00028218,3]
[368478097,1751189487160,-500.0,0.00028218,3]
[368478098,1751189487170,-500.0,0.00028218,3]
[368478099,1751189487179,-500.0,0.00028218,3]
[368478100,1751189487189,-599.84,0.00028218,3]
[368478101,1751189487198,-905.54,0.00028218,3]
[368478102,1751189487207,-490.0,0.00028218,3]
[368478103,1751189487217,-1294.0,0.00028218,3]
[368478104,1751189487226,-613.39,0.00028218,3]
[368478105,1751189487235,-490.0,0.00028218,3]
[368478106,1751189487245,-490.0,0.00028218,3]
[368478107,1751189487254,-490.0,0.00028218,3]
[368478108,1751189487263,-1443.66,0.00028218,3]
[368478109,1751189487273,-490.0,0.00028218,3]
[368478110,1751189487283,-490.0,0.00028218,3]
[368478111,1751189487292,-490.0,0.00028218,3]
[368478112,1751189487301,-547.5,0.00028218,3]
[368478113,1751189487311,-490.0,0.00028218,3]
[368478114,1751189487320,-712.25,0.00028218,3]
[368478115,1751189487329,-2682.94,0.00028218,3]
[368478116,1751189487339,-490.0,0.00028218,3]
[368478117,1751189487349,-150.0,0.00028218,2]
[368478118,1751189487358,-150.0,0.00028218,2]
[368478119,1751189487367,-150.0,0.00028218,2]
[368478120,1751189487376,-2022.98,0.00028218,3]
[368478121,1751189487385,-490.0,0.00028218,3]
[368478122,1751189487395,-810.47,0.00028218,3]
[368478123,1751189487404,-2334.91,0.00028218,3]
[368478124,1751189487413,-490.0,0.00028218,3]
[368478125,1751189487422,-490.0,0.00028218,3]
[368478126,1751189487431,-490.0,0.00028218,3]
[368478127,1751189487440,-500.0,0.00028218,7]
[368478128,1751189487449,-617.59992273,0.00028219,2]
[368478129,1751189487458,-283021.90371872,0.00028219,2]
[368478130,1751189487468,-250.0,0.00028219,3]
[368478131,1751189487477,-500.0,0.00028219,3]
[368478132,1751189487486,-150.0,0.00028219,3]
[368478133,1751189487496,-500.0,0.00028219,3]
[368478134,1751189487505,-500.0,0.00028219,3]
[368478135,1751189487514,-471.0,0.00028219,3]
[368478136,1751189487523,-202.76107737,0.00028219,3]
[368478137,1751189487533,-500.0,0.00028219,3]
[368478138,1751189487543,-150.0,0.00028219,3]
[368478139,1751189487554,-500.0,0.00028219,2]
[368478140,1751189487563,-150.0,0.00028219,3]
[368478141,1751189487573,-500.0,0.00028219,2]
[368478142,1751189487585,-850.0,0.00028219,3]
[368478143,1751189487596,-150.0,0.00028219,3]
[368478144,1751189487606,-500.0,0.00028219,3]
[368478145,1751189487616,-736.51,0.00028219,3]
[368478146,1751189487626,-490.0,0.00028219,3]
[368478147,1751189487636,-900.85,0.00028219,3]
[368478148,1751189487648,-490.0,0.00028219,3]
[368478149,1751189487658,-1027.26,0.00028219,3]
[368478150,1751189487667,-2908.954241,0.00028219,3]
[368478151,1751189487677,-790.26,0.00028219,3]
[368478152,1751189487686,-490.0,0.00028219,3]
[368478153,1751189487695,-2275.369949,0.00028219,3]
[368478154,1751189487705,-158.454063,0.00028219,3]
[368478155,1751189487714,-583.56,0.00028219,3]
[368478156,1751189487723,-151.887036,0.00028219,3]
[368478157,1751189487732,-490.0,0.00028219,3]
[368478158,1751189487741,-1110.1,0.00028219,3]
[368478159,1751189487751,-490.0,0.00028219,3]
[368478160,1751189487760,-415.34672198,0.00028219,3]
[368478161,1751189487770,-535.93,0.00028219,3]
[368478162,1751189487779,-490.0,0.00028219,3]
[368478163,1751189487788,-490.0,0.00028219,3]
[368478164,1751189487797,-490.0,0.00028219,3]
[368478165,1751189487807,-490.0,0.00028219,3]
[368478166,1751189487816,-490.0,0.00028219,3]
[368478167,1751189487826,-490.0,0.00028219,3]
[368478168,1751189487835,-490.0,0.00028219,3]
[368478169,1751189487844,-490.0,0.00028219,3]
[368478170,1751189487853,-490.0,0.00028219,3]
[368478171,1751189487863,-490.0,0.00028219,3]
[368478172,1751189487874,-553.18,0.00028219,3]
[368478173,1751189487884,-907.34,0.00028219,3]
[368478174,1751189487893,-490.0,0.00028219,3]
[368478175,1751189487905,-500.0,0.00028219,3]
[368478176,1751189487915,-295.05586054,0.00028219,3]
[368478177,1751189487926,-647.97,0.00028219,3]
[368478178,1751189487936,-490.0,0.00028219,3]
[368478179,1751189487946,-490.0,0.00028219,3]
[368478180,1751189487956,-490.0,0.00028219,3]
[368478181,1751189487965,-490.0,0.00028219,3]
[368478182,1751189487975,-490.0,0.00028219,3]
[368478183,1751189487985,-490.0,0.00028219,3]
[368478184,1751189487994,-490.0,0.00028219,3]
[368478185,1751189488003,-490.0,0.00028219,3]
[368478186,1751189488013,-490.0,0.00028219,3]
[368478187,1751189488022,-1022.8,0.00028219,3]
[368478188,1751189488032,-490.0,0.00028219,3]
[368478189,1751189488041,-490.0,0.00028219,3]
[368478190,1751189488051,-786.24,0.00028219,3]
[368478191,1751189488060,-490.0,0.00028219,3]
[368478192,1751189488069,-179.66138731,0.00028219,3]
[368478193,1751189488078,-490.0,0.00028219,3]
[368478194,1751189488087,-490.0,0.00028219,3]
[368478195,1751189488096,-490.0,0.00028219,3]
[368478196,1751189488106,-490.0,0.00028219,3]
[368478197,1751189488115,-1418.76,0.00028219,3]
[368478198,1751189488125,-1168.69,0.00028219,3]
[368478199,1751189488134,-490.0,0.00028219,3]
[368478200,1751189488144,-490.0,0.00028219,3]
[368478201,1751189488153,-490.0,0.00028219,3]
[368478202,1751189488163,-490.0,0.00028219,3]
[368478203,1751189488172,-490.0,0.00028219,3]
[368478204,1751189488181,-490.0,0.00028219,3]
[368478205,1751189488189,-702.38,0.00028219,3]
[368478206,1751189488199,-455.33966942,0.00028219,3]
[368478207,1751189488208,-490.0,0.00028219,3]
[368478208,1751189488217,-1069.32,0.00028219,3]
[368478209,1751189488226,-785.66,0.00028219,3]
[368478210,1751189488235,-695.38,0.00028219,3]
[368478211,1751189488244,-490.0,0.00028219,3]
[368478212,1751189488253,-490.0,0.00028219,3]
[368478213,1751189488262,-490.0,0.00028219,3]
[368478214,1751189488271,-490.0,0.00028219,3]
[368478215,1751189488281,-490.0,0.00028219,3]
[368478216,1751189488290,-490.0,0.00028219,3]
[368478217,1751189488299,-490.0,0.00028219,3]
[368478218,1751189488308,-1047.3,0.00028219,3]
[368478219,1751189488317,-1258.53,0.00028219,3]
[368478220,1751189488326,-823.69,0.00028219,3]
[368478221,1751189488335,-578.63,0.00028219,3]
[368478222,1751189488345,-677.33,0.00028219,3]
[368478223,1751189488354,-490.0,0.00028219,3]
[368478224,1751189488364,-977.62,0.00028219,3]
[368478225,1751189488374,-490.0,0.00028219,3]
[368478226,1751189488384,-490.0,0.00028219,3]
[368478227,1751189488393,-490.0,0.00028219,3]
[368478228,1751189488402,-490.0,0.00028219,3]
[368478229,1751189488411,-490.0,0.00028219,3]
[368478230,1751189488421,-545.72,0.00028219,3]
[368478231,1751189488431,-1605.81,0.00028219,3]
[368478232,1751189488441,-490.0,0.00028219,3]
[368478233,1751189488450,-490.0,0.00028219,3]
[368478234,1751189488461,-490.0,0.00028219,3]
[368478235,1751189488470,-490.0,0.00028219,3]
[368478236,1751189488479,-619.54,0.00028219,3]
[368478237,1751189488488,-490.0,0.00028219,3]
[368478238,1751189488497,-490.0,0.00028219,3]
[368478239,1751189488506,-490.0,0.00028219,3]
[368478240,1751189488516,-804.6,0.00028219,3]
[368478241,1751189488525,-1438.38,0.00028219,3]
[368478242,1751189488535,-601.49,0.00028219,3]
[368478243,1751189488544,-530.39792276,0.00028219,3]
[368478244,1751189488554,-490.0,0.00028219,3]
[368478245,1751189488563,-155.261825,0.00028219,3]
[368478246,1751189488572,-490.0,0.00028219,3]
[368478247,1751189488582,-490.0,0.00028219,3]
[368478248,1751189488591,-1064.38,0.00028219,3]
[368478249,1751189488600,-490.0,0.00028219,3]
[368478250,1751189488609,-490.0,0.00028219,3]
[368478251,1751189488619,-490.0,0.00028219,3]
[368478252,1751189488629,-599.65,0.00028219,3]
[368478253,1751189488638,-490.0,0.00028219,3]
[368478254,1751189488649,-736.42,0.00028219,3]
[368478255,1751189488659,-1109.15,0.00028219,3]
[368478256,1751189488667,-490.0,0.00028219,3]
[368478257,1751189488677,-490.0,0.00028219,3]
[368478258,1751189488686,-490.0,0.00028219,3]
[368478259,1751189488695,-490.0,0.00028219,3]
[368478260,1751189488705,-981.7,0.00028219,3]
[368478261,1751189488715,-490.0,0.00028219,3]
[368478262,1751189488724,-490.0,0.00028219,3]
[368478263,1751189488734,-490.0,0.00028219,3]
[368478264,1751189488744,-490.0,0.00028219,3]
[368478265,1751189488754,-490.0,0.00028219,3]
[368478266,1751189488764,-490.0,0.00028219,3]
[368478267,1751189488773,-490.0,0.00028219,3]
[368478268,1751189488783,-522.61,0.00028219,3]
[368478269,1751189488792,-490.0,0.00028219,3]
[368478270,1751189488803,-726.4,0.00028219,3]
[368478271,1751189488819,-490.0,0.00028219,3]
[368478272,1751189488839,-490.0,0.00028219,3]
[368478273,1751189488855,-490.0,0.00028219,3]
[368478274,1751189488865,-490.0,0.00028219,3]
[368478275,1751189488878,-470.83804454,0.00028219,3]
[368478276,1751189488888,-490.0,0.00028219,3]
[368478277,1751189488898,-528.76,0.00028219,3]
[368478278,1751189488908,-490.0,0.00028219,3]
[368478279,1751189488917,-490.0,0.00028219,3]
[368478280,1751189488927,-749.48,0.00028219,3]
[368478281,1751189488936,-490.0,0.00028219,3]
[368478282,1751189488945,-1154.83,0.00028219,3]
[368478283,1751189488954,-490.0,0.00028219,3]
[368478284,1751189488963,-1285.95,0.00028219,3]
[368478285,1751189488972,-490.0,0.00028219,3]
[368478286,1751189488982,-654.43,0.00028219,3]
[368478287,1751189488992,-490.0,0.00028219,3]
[368478288,1751189489001,-490.0,0.00028219,3]
[368478289,1751189489011,-490.0,0.00028219,3]
[368478290,1751189489019,-490.0,0.00028219,3]
[368478291,1751189489029,-568.05,0.00028219,3]
[368478292,1751189489038,-490.0,0.00028219,3]
[368478293,1751189489047,-490.0,0.00028219,3]
[368478294,1751189489056,-490.0,0.00028219,3]
[368478295,1751189489066,-1151.7,0.00028219,3]
[368478296,1751189489076,-490.0,0.00028219,3]
[368478297,1751189489086,-490.0,0.00028219,3]
[368478298,1751189489096,-490.0,0.00028219,3]
[368478299,1751189489105,-490.0,0.00028219,3]
[368478300,1751189489115,-490.0,0.00028219,3]
[368478301,1751189489124,-490.0,0.00028219,3]
[368478302,1751189489134,-490.0,0.00028219,3]
[368478303,1751189489143,-2763.49,0.00028219,3]
[368478304,1751189489152,-490.0,0.00028219,3]
[368478305,1751189489162,-520.71,0.00028219,3]
[368478306,1751189489171,-490.0,0.00028219,3]
[368478307,1751189489180,-490.0,0.00028219,3]
[368478308,1751189489189,-515.29,0.00028219,3]
[368478309,1751189489198,-490.0,0.00028219,3]
[368478310,1751189489207,-490.0,0.00028219,3]
[368478311,1751189489216,-2217.84,0.00028219,3]
[368478312,1751189489225,-490.0,0.00028219,3]
[368478313,1751189489234,-490.0,0.00028219,3]
[368478314,1751189489243,-567.92,0.00028219,3]
[368478315,1751189489252,-1350.27,0.00028219,3]
[368478316,1751189489261,-490.0,0.00028219,3]
[368478317,1751189489269,-490.0,0.00028219,3]
[368478318,1751189489278,-490.0,0.00028219,3]
[368478319,1751189489287,-490.0,0.00028219,3]
[368478320,1751189489296,-490.0,0.00028219,3]
[368478321,1751189489305,-490.0,0.00028219,3]
[368478322,1751189489314,-490.0,0.00028219,3]
[368478323,1751189489323,-1171.27,0.00028219,3]
[368478324,1751189489333,-599.79,0.00028219,3]
[368478325,1751189489342,-490.0,0.00028219,3]
[368478326,1751189489351,-490.0,0.00028219,3]
[368478327,1751189489360,-490.0,0.00028219,3]
[368478328,1751189489369,-1337.18,0.00028219,3]
[368478329,1751189489378,-1337.18,0.00028219,3]
[368478330,1751189489387,-940.81,0.00028219,3]
[368478331,1751189489395,-490.0,0.00028219,3]
[368478332,1751189489405,-597.68,0.00028219,3]
[368478333,1751189489414,-2500.0,0.00028219,14]
[368478334,1751189489422,-490.0,0.00028219,3]
[368478335,1751189489431,-490.0,0.00028219,3]
[368478336,1751189489440,-543.4,0.00028219,3]
[368478337,1751189489449,-490.0,0.00028219,3]
[368478338,1751189489458,-632.18669158,0.00028219,3]
[368478339,1751189489467,-932.13,0.00028219,3]
[368478340,1751189489476,-490.0,0.00028219,3]
[368478341,1751189489485,-1152.98,0.00028219,3]
[368478342,1751189489494,-490.0,0.00028219,3]
[368478343,1751189489503,-490.0,0.00028219,3]
[368478344,1751189489512,-490.0,0.00028219,3]
[368478345,1751189489521,-529.0,0.00028219,3]
[368478346,1751189489530,-1140.97,0.00028219,3]
[368478347,1751189489539,-876.8,0.00028219,3]
[368478348,1751189489548,-840.26,0.00028219,3]
[368478349,1751189489557,-2285.73,0.00028219,3]
[368478350,1751189489566,-490.0,0.00028219,3]
[368478351,1751189489575,-490.0,0.00028219,3]
[368478352,1751189489584,-490.0,0.00028219,3]
[368478353,1751189489593,-1905.89,0.00028219,3]
[368478354,1751189489602,-1754.87,0.00028219,3]
[368478355,1751189489611,-2305.01,0.00028219,3]
[368478356,1751189489620,-490.0,0.00028219,3]
[368478357,1751189489630,-1674.7,0.00028219,3]
[368478358,1751189489638,-490.0,0.00028219,3]
[368478359,1751189489648,-490.0,0.00028219,3]
[368478360,1751189489657,-490.0,0.00028219,3]